fUSD/lending_fUSD_20260701
["ID","MTS","AMOUNT","RATE_DAILY","PERIOD"]
[426820650,1782900632000,-255.01931856,0.00018999,2]
[426820654,1782900632000,-8169.97695684,0.000192,2]
[426820633,1782900632000,-8169.97695684,0.000181,2]
[426820656,1782900632000,-340.23,0.00019272,2]
[426820657,1782900632000,-160.0,0.00019327,2]
[426820658,1782900632000,-192.11721103,0.00019357,2]
[426820645,1782900632000,-299.22472531,0.00018999,2]
[426820632,1782900632000,-181.14845744,0.000181,2]
[426820627,1782900632000,-500.0,0.00017808,2]
[426820630,1782900632000,-1002.15,0.00018016,2]
[426820594,1782900632000,-500.0,0.00017644,2]
[426820590,1782900632000,-500.0,0.00017644,2]
[426820588,1782900632000,-500.0,0.00017644,2]
[426820592,1782900632000,-500.0,0.00017644,2]
[426820598,1782900632000,-500.0,0.00017644,2]
[426820596,1782900632000,-500.0,0.00017644,2]
[426820608,1782900632000,-500.0,0.00017644,2]
[426820612,1782900632000,-500.0,0.00017644,2]
[426820615,1782900632000,-250.0,0.00017644,2]
[426820610,1782900632000,-500.0,0.00017644,2]
[426820602,1782900632000,-500.0,0.00017644,2]
[426820601,1782900632000,-500.0,0.00017644,2]
[426820631,1782900632000,-300.0,0.00018099,2]
[426820604,1782900632000,-515.10891514,0.00017644,2]
[426820617,1782900632000,-320.46312307,0.00017644,2]
[426820619,1782900632000,-300.0,0.00017644,2]
[426820620,1782900632000,-412.94540612,0.00017644,2]
[426820625,1782900632000,-546.12,0.00017645,2]
[426820660,1782900632000,-150.196,0.00019357,2]
[426820621,1782900632000,-383.80850754,0.00017644,2]
[426820626,1782900632000,-1953.55,0.00017645,2]
[426820624,1782900632000,-167.75329217,0.00017644,2]
[426820622,1782900632000,-500.0,0.00017644,2]
[426820623,1782900632000,-335.88006873,0.00017644,2]
[426820628,1782900632000,-1050.0,0.00017994,2]
[426820629,1782900632000,-202.11,0.00018016,2]
[426820606,1782900632000,-500.0,0.00017644,2]
[426820659,1782900632000,-200.0,0.00019357,2]
[426820653,1782900632000,-160.0,0.0001905,2]
[426820662,1782900632000,-150.0,0.00019357,2]
[426820700,1782900632000,-697.08670785,0.00021771,2]
[426820691,1782900632000,-999.99,0.00020951,2]
[426820692,1782900632000,-4492.56,0.00020951,2]
[426820697,1782900632000,-161.81581474,0.00021497,2]
[426820696,1782900632000,-697.08670785,0.00021497,2]
[426820693,1782900632000,-166.66,0.00021229,2]
[426820694,1782900632000,-152.0,0.00021266,3]
[426820695,1782900632000,-304.72,0.00021297,2]
[426820702,1782900632000,-5000.0,0.00021918,2]
[426820707,1782900632000,-281.44353155,0.00022248,2]
[426820708,1782900632000,-2337.0,0.00022279,2]
[426820705,1782900632000,-216.66345934,0.00022186,2]
[426820689,1782900632000,-150.99,0.00020951,2]
[426820712,1782900632000,-150.0,0.00022357,2]
[426820703,1782900632000,-697.08670785,0.00022045,2]
[426820710,1782900632000,-150.0,0.00022357,2]
[426820701,1782900632000,-304.72,0.00021792,2]
[426820706,1782900632000,-7651.06583712,0.00022217,2]
[426820709,1782900632000,-697.08670785,0.00022319,2]
[426820714,1782900632000,-961.97,0.00022466,2]
[426820713,1782900632000,-150.0,0.00022357,2]
[426820716,1782900632000,-697.08670785,0.00022593,2]
[426820715,1782900632000,-754.42,0.00022466,2]
[426820717,1782900632000,-161.81581474,0.00022593,2]
[426820718,1782900632000,-150.0,0.0002273,2]
[426820661,1782900632000,-249.242,0.00019357,2]
[426820704,1782900632000,-161.81581474,0.00022045,2]
[426820699,1782900632000,-160.0,0.0002167,2]
[426820711,1782900632000,-150.0,0.00022357,2]
[426820690,1782900632000,-9999.99,0.00020951,2]
[426820698,1782900632000,-7651.06583719,0.00021657,2]
[426820664,1782900632000,-1500.0,0.00019428,2]
[426820665,1782900632000,-1500.0,0.00019428,2]
[426820666,1782900632000,-169.56,0.00019488,2]
[426820673,1782900632000,-332.0,0.0001973,2]
[426820668,1782900632000,-150.0,0.0001973,2]
[426820667,1782900632000,-8169.97695684,0.000196,2]
[426820674,1782900632000,-1278.0,0.0001973,2]
[426820669,1782900632000,-150.149,0.0001973,2]
[426820671,1782900632000,-3565.0,0.0001973,2]
[426820670,1782900632000,-150.0,0.0001973,2]
[426820672,1782900632000,-1362.0,0.0001973,2]
[426820676,1782900632000,-5671.27,0.0001973,2]
[426820663,1782900632000,-8169.97695684,0.000194,2]
[426820677,1782900632000,-8169.97695684,0.000198,2]
[426820675,1782900632000,-1231.0,0.0001973,2]
[426820683,1782900632000,-304.72,0.00020306,2]
[426820682,1782900632000,-241.0,0.00020164,2]
[426820678,1782900632000,-304.72,0.00019811,2]
[426820680,1782900632000,-171.94,0.00019829,2]
[426820684,1782900632000,-150.0,0.00020353,2]
[426820688,1782900632000,-304.72,0.00020801,2]
[426820685,1782900632000,-248.65,0.00020592,2]
[426820686,1782900632000,-2007.0,0.000207,2]
[426820681,1782900632000,-164.64,0.00020073,2]
[426820679,1782900632000,-200.0,0.00019828,2]
[426820687,1782900632000,-166.66,0.0002073,2]
[426820760,1782900633000,-200.06626694,0.00023422,2]
[426820755,1782900633000,-159.18975993,0.00023422,2]
[426820749,1782900633000,-339.39830602,0.00023422,2]
[426820753,1782900633000,-315.92998358,0.00023422,2]
[426820756,1782900633000,-631.45574069,0.00023422,2]
[426820757,1782900633000,-173.85450133,0.00023422,2]
[426820758,1782900633000,-158.56607769,0.00023422,2]
[426820754,1782900633000,-194.46147075,0.00023422,2]
[426820751,1782900633000,-297.29371504,0.00023422,2]
[426820750,1782900633000,-160.05753304,0.00023422,2]
[426820761,1782900633000,-164.7828595,0.00023422,2]
[426820759,1782900633000,-179.93996328,0.00023422,2]
[426820762,1782900633000,-218.31053481,0.00023422,2]
[426820764,1782900633000,-167.41891251,0.00023422,2]
[426820767,1782900633000,-1670.43140825,0.0002344,2]
[426820769,1782900633000,-24977.71617225,0.00023589,2]
[426820763,1782900633000,-157.39379658,0.00023422,2]
[426820765,1782900633000,-218.51828718,0.00023422,2]
[426820766,1782900633000,-100810.54539642,0.00023423,2]
[426820770,1782900633000,-697.08670785,0.00023689,2]
[426820772,1782900633000,-268.116,0.00023846,5]
[426820778,1782900633000,-187.52923743,0.00023994,2]
[426820773,1782900633000,-7651.06583712,0.00023898,2]
[426820776,1782900633000,-697.08670785,0.00023963,2]
[426820777,1782900633000,-4127.35,0.0002399,2]
[426820752,1782900633000,-249.74540483,0.00023422,2]
[426820768,1782900633000,-500.0,0.0002354,2]
[426820748,1782900633000,-155.99373506,0.00023422,2]
[426820724,1782900633000,-160.0,0.000228,3]
[426820743,1782900633000,-164.41137957,0.00023422,2]
[426820721,1782900633000,-1278.0,0.0002273,2]
[426820719,1782900633000,-150.0,0.0002273,2]
[426820720,1782900633000,-223.0,0.0002273,2]
[426820722,1782900633000,-1229.0,0.0002273,2]
[426820723,1782900633000,-7651.06583712,0.00022778,2]
[426820725,1782900633000,-697.08670785,0.00022867,2]
[426820726,1782900633000,-1516.0,0.00022933,3]
[426820727,1782900633000,-322.49194285,0.00022958,2]
[426820733,1782900633000,-882.9083981,0.00023181,2]
[426820732,1782900633000,-161.81581474,0.00023141,2]
[426820728,1782900633000,-4127.35,0.0002298,2]
[426820735,1782900633000,-7651.06583712,0.00023338,2]
[426820745,1782900633000,-159.59407746,0.00023422,2]
[426820730,1782900633000,-171.94,0.00023133,2]
[426820734,1782900633000,-2201.9975,0.00023323,2]
[426820729,1782900633000,-60000.0,0.0002299,2]
[426820737,1782900633000,-521.04204183,0.00023422,2]
[426820747,1782900633000,-200.89878691,0.00023422,2]
[426820746,1782900633000,-156.95757,0.00023422,2]
[426820740,1782900633000,-205.44008881,0.00023422,2]
[426820741,1782900633000,-151.05543187,0.00023422,2]
[426820736,1782900633000,-697.08670785,0.00023415,2]
[426820742,1782900633000,-174.64197604,0.00023422,2]
[426820739,1782900633000,-153.31992526,0.00023422,2]
[426820738,1782900633000,-500.0,0.00023422,2]
[426820744,1782900633000,-179.15325611,0.00023422,2]
[426820731,1782900633000,-697.08670785,0.00023141,2]
[426820775,1782900633000,-24977.71617217,0.00023935,2]
[426820771,1782900633000,-161.81581474,0.00023689,2]
[426820779,1782900633000,-1667.702,0.00023997,5]
[426820814,1782900633000,-696.35013464,0.0002453,2]
[426820808,1782900633000,-200.0,0.00024469,2]
[426820816,1782900633000,-197.0034922,0.00024581,2]
[426820815,1782900633000,-696.35013464,0.00024533,2]
[426820818,1782900633000,-696.35013464,0.00024592,2]
[426820817,1782900633000,-696.35013464,0.00024582,2]
[426820810,1782900633000,-696.35013464,0.00024482,2]
[426820809,1782900633000,-696.35013464,0.00024478,2]
[426820819,1782900633000,-24977.71617217,0.00024626,2]
[426820821,1782900633000,-1000.0,0.00024657,2]
[426820823,1782900633000,-151.0,0.00024658,2]
[426820822,1782900633000,-758.099753,0.00024657,2]
[426820813,1782900633000,-697.08670785,0.00024511,2]
[426820820,1782900633000,-1298.0,0.00024657,5]
[426820824,1782900633000,-151.0,0.00024658,2]
[426820826,1782900633000,-733.47,0.00024658,2]
[426820829,1782900633000,-516.45498593,0.00024666,2]
[426820827,1782900633000,-177.82,0.00024658,2]
[426820830,1782900633000,-15113.61180934,0.00024667,2]
[426820828,1782900633000,-178.07,0.00024658,2]
[426820831,1782900633000,-306.63985052,0.00024672,2]
[426820833,1782900633000,-302.11086373,0.00024672,2]
[426820832,1782900633000,-410.88017762,0.00024672,2]
[426820834,1782900633000,-349.28395208,0.00024672,2]
[426820836,1782900633000,-358.30651221,0.00024672,2]
[426820774,1782900633000,-1670.43140819,0.00023906,2]
[426820825,1782900633000,-278.309815,0.00024658,2]
[426820812,1782900633000,-2935.0,0.00024493,3]
[426820835,1782900633000,-328.82275914,0.00024672,2]
[426820805,1782900633000,-696.35013464,0.000244,2]
[426820811,1782900633000,-500.0,0.00024492,2]
[426820782,1782900633000,-150.0,0.00024,2]
[426820781,1782900633000,-166.0,0.00024,2]
[426820780,1782900633000,-100000.0,0.00024,2]
[426820784,1782900633000,-696.35013464,0.00024162,2]
[426820789,1782900633000,-697.08670785,0.00024237,2]
[426820792,1782900633000,-696.35013464,0.0002428,2]
[426820791,1782900633000,-696.35013464,0.00024271,2]
[426820790,1782900633000,-161.81581474,0.00024237,2]
[426820785,1782900633000,-13934.86,0.00024174,2]
[426820788,1782900633000,-152.0,0.00024224,4]
[426820786,1782900633000,-696.35013464,0.00024177,2]
[426820793,1782900633000,-24977.71617217,0.0002428,2]
[426820783,1782900633000,-841.72,0.0002411,2]
[426820787,1782900633000,-696.35013464,0.00024207,2]
[426820795,1782900633000,-696.35013464,0.0002431,2]
[426820807,1782900633000,-7651.06583712,0.00024459,2]
[426820803,1782900633000,-1390.0,0.00024377,5]
[426820797,1782900633000,-1457.0,0.00024355,5]
[426820798,1782900633000,-696.35013464,0.00024355,2]
[426820800,1782900633000,-696.35013464,0.00024371,2]
[426820806,1782900633000,-696.35013464,0.00024424,2]
[426820802,1782900633000,-696.35013464,0.00024375,2]
[426820804,1782900633000,-696.35013464,0.00024377,2]
[426820799,1782900633000,-169.56,0.0002436,2]
[426820796,1782900633000,-696.35013464,0.0002434,2]
[426820794,1782900633000,-696.35013464,0.00024301,2]
[426820801,1782900633000,-1670.43140819,0.00024371,2]
[426820876,1782900634000,-181.92439338,0.00024729,2]
[426820870,1782900634000,-731.14,0.000247,7]
[426820875,1782900634000,-192.96864756,0.00024729,2]
[426820877,1782900634000,-166.66,0.00024732,2]
[426820871,1782900634000,-218.36435051,0.00024704,2]
[426820869,1782900634000,-151.0,0.00024694,2]
[426820867,1782900634000,-244.60233473,0.00024681,2]
[426820873,1782900634000,-207.66147991,0.00024729,2]
[426820866,1782900634000,-223.15865041,0.00024681,2]
[426820872,1782900634000,-198.24972647,0.00024706,2]
[426820865,1782900634000,-593.8447002,0.00024681,2]
[426820882,1782900634000,-733.54,0.000248,14]
[426820874,1782900634000,-199.69462588,0.00024729,2]
[426820878,1782900634000,-160.0,0.00024773,3]
[426820881,1782900634000,-696.35013464,0.00024788,2]
[426820880,1782900634000,-161.81581474,0.00024785,2]
[426820891,1782900634000,-696.35013464,0.00024912,2]
[426820884,1782900634000,-696.35013464,0.00024824,2]
[426820883,1782900634000,-200.0,0.000248,9]
[426820888,1782900634000,-179.31585624,0.000249,2]
[426820887,1782900634000,-204.71923249,0.00024886,2]
[426820886,1782900634000,-696.35013464,0.00024881,2]
[426820864,1782900634000,-696.35013464,0.0002468,2]
[426820885,1782900634000,-1670.43140819,0.00024837,2]
[426820879,1782900634000,-697.08670785,0.00024785,2]
[426820860,1782900634000,-436.62106962,0.00024672,2]
[426820856,1782900634000,-437.03657435,0.00024672,2]
[426820863,1782900634000,-240.66880979,0.00024674,2]
[426820889,1782900634000,-500.0,0.000249,9]
[426820844,1782900634000,-499.49080966,0.00024672,2]
[426820839,1782900634000,-401.79757382,0.00024672,2]
[426820840,1782900634000,-311.98747011,0.00024672,2]
[426820841,1782900634000,-678.79661205,0.00024672,2]
[426820843,1782900634000,-594.58743008,0.00024672,2]
[426820842,1782900634000,-320.11506608,0.00024672,2]
[426820838,1782900634000,-313.91514,0.00024672,2]
[426820837,1782900634000,-319.18815491,0.00024672,2]
[426820845,1782900634000,-631.85996716,0.00024672,2]
[426820848,1782900634000,-473.59180552,0.00024672,2]
[426820847,1782900634000,-318.37951986,0.00024672,2]
[426820849,1782900634000,-347.70900266,0.00024672,2]
[426820852,1782900634000,-400.13253387,0.00024672,2]
[426820850,1782900634000,-317.13215538,0.00024672,2]
[426820855,1782900634000,-334.83782501,0.00024672,2]
[426820851,1782900634000,-359.87992657,0.00024672,2]
[426820846,1782900634000,-388.9229415,0.00024672,2]
[426820854,1782900634000,-314.78759316,0.00024672,2]
[426820853,1782900634000,-329.56571901,0.00024672,2]
[426820868,1782900634000,-696.35013464,0.00024683,2]
[426820858,1782900634000,-239.68863362,0.00024672,2]
[426820857,1782900634000,-247.14194956,0.00024672,2]
[426820859,1782900634000,-242.52181333,0.00024672,2]
[426820861,1782900634000,-240.35807654,0.00024674,2]
[426820862,1782900634000,-244.88291634,0.00024674,2]
[426820890,1782900634000,-2500.0,0.00024911,2]
[426820899,1782900634000,-8000.0,0.00024984,5]
[426820895,1782900634000,-362.87,0.00024961,7]
[426820922,1782900634000,-138441.0,0.000251,2]
[426820924,1782900634000,-696.35013464,0.0002515,2]
[426820926,1782900634000,-696.35013464,0.00025268,2]
[426820929,1782900634000,-1670.43140819,0.00025303,2]
[426820930,1782900634000,-696.35013464,0.00025307,2]
[426820925,1782900634000,-696.35013464,0.00025215,2]
[426820933,1782900634000,-161.81581474,0.00025333,2]
[426820931,1782900634000,-24977.71617217,0.00025317,2]
[426820932,1782900634000,-697.08670785,0.00025333,2]
[426820927,1782900634000,-696.35013464,0.00025278,2]
[426820928,1782900634000,-696.35013464,0.00025295,2]
[426820934,1782900634000,-15113.61180934,0.00025333,2]
[426820936,1782900634000,-434.22597177,0.0002537,2]
[426820937,1782900634000,-731.14,0.000254,7]
[426820935,1782900634000,-150.0,0.00025357,2]
[426820938,1782900634000,-4403.0,0.00025473,3]
[426820939,1782900634000,-150.0,0.00025499,20]
[426820942,1782900634000,-459.95977578,0.00025504,2]
[426820941,1782900634000,-5528.0,0.000255,3]
[426820940,1782900634000,-300.0,0.000255,2]
[426820944,1782900634000,-453.1662956,0.00025504,2]
[426820943,1782900634000,-616.32026643,0.00025504,2]
[426820946,1782900634000,-493.23413871,0.00025504,2]
[426820892,1782900634000,-696.35013464,0.00024942,2]
[426820947,1782900634000,-537.45976832,0.00025504,2]
[426820921,1782900634000,-2337.0,0.0002509,3]
[426820919,1782900634000,-180.49366801,0.00025044,2]
[426820945,1782900634000,-523.92592812,0.00025504,2]
[426820920,1782900634000,-697.08670785,0.00025059,2]
[426820923,1782900634000,-696.35013464,0.00025137,2]
[426820893,1782900634000,-1116.82,0.00024961,7]
[426820901,1782900634000,-696.35013464,0.00024999,2]
[426820896,1782900634000,-5219.84,0.00024961,7]
[426820897,1782900634000,-155.04098898,0.00024967,2]
[426820894,1782900634000,-1519.03,0.00024961,7]
[426820900,1782900634000,-922.64197326,0.0002499,2]
[426820898,1782900634000,-24977.71617217,0.00024972,2]
[426820903,1782900634000,-209011.61450895,0.00025,3]
[426820904,1782900634000,-21669.33108996,0.00025,2]
[426820908,1782900634000,-221220.36923255,0.00025,7]
[426820905,1782900634000,-14824.52124238,0.00025,2]
[426820902,1782900634000,-6360.54296255,0.00025,2]
[426820909,1782900634000,-145000.0,0.00025,2]
[426820906,1782900634000,-300.0,0.00025,2]
[426820907,1782900634000,-15113.61180934,0.00025,2]
[426820918,1782900634000,-434.2259718,0.00025037,2]
[426820911,1782900634000,-1555.22090464,0.00025,20]
[426820910,1782900634000,-481.809549,0.00025,7]
[426820912,1782900634000,-216.66345934,0.00025,7]
[426820914,1782900634000,-696.35013464,0.00025002,2]
[426820916,1782900634000,-696.35013464,0.00025008,2]
[426820915,1782900634000,-189.66944165,0.00025008,14]
[426820913,1782900634000,-216.66345934,0.00025,3]
[426820917,1782900634000,-7651.06583712,0.00025019,2]
[426820980,1782900635000,-395.8964668,0.00025514,2]
[426820979,1782900635000,-180.80537192,0.00025514,2]
[426820983,1782900635000,-242.02449881,0.00025514,2]
[426820973,1782900635000,-282.47652638,0.00025514,2]
[426820990,1782900635000,-489.20466946,0.00025514,2]
[426820987,1782900635000,-241.89612764,0.00025514,2]
[426820974,1782900635000,-210.81047977,0.00025514,2]
[426820985,1782900635000,-191.15041856,0.00025514,2]
[426820986,1782900635000,-202.49157958,0.00025514,2]
[426820981,1782900635000,-226.56811834,0.00025514,2]
[426820997,1782900635000,-151.0,0.00025516,2]
[426820989,1782900635000,-446.31730081,0.00025514,2]
[426820984,1782900635000,-153.46607303,0.00025514,2]
[426820988,1782900635000,-470.26580192,0.00025514,2]
[426820982,1782900635000,-279.15219163,0.00025514,2]
[426820991,1782900635000,-151.0,0.00025516,2]
[426820992,1782900635000,-151.0,0.00025516,2]
[426820996,1782900635000,-151.0,0.00025516,2]
[426820993,1782900635000,-151.0,0.00025516,2]
[426820995,1782900635000,-151.0,0.00025516,2]
[426820994,1782900635000,-151.39,0.00025516,2]
[426820976,1782900635000,-208.3957566,0.00025514,2]
[426820978,1782900635000,-206.02421442,0.00025514,2]
[426820972,1782900635000,-151.36387169,0.00025514,2]
[426820958,1782900635000,-477.56927979,0.00025505,2]
[426820975,1782900635000,-243.12996667,0.00025514,2]
[426820998,1782900635000,-151.0,0.00025516,2]
[426820949,1782900635000,-470.87271001,0.00025505,2]
[426820948,1782900635000,-478.78223237,0.00025505,2]
[426820953,1782900635000,-480.17259913,0.00025505,2]
[426820954,1782900635000,-891.88114512,0.00025505,2]
[426820951,1782900635000,-467.98120517,0.00025505,2]
[426820950,1782900635000,-602.69636073,0.00025505,2]
[426820952,1782900635000,-1018.19491807,0.00025505,2]
[426820957,1782900635000,-583.38441225,0.00025505,2]
[426820956,1782900635000,-947.78995074,0.00025505,2]
[426820965,1782900635000,-472.18138974,0.00025505,2]
[426820970,1782900635000,-654.93160443,0.00025505,2]
[426820964,1782900635000,-494.34857851,0.00025505,2]
[426820955,1782900635000,-749.23621449,0.00025505,2]
[426820960,1782900635000,-521.56350398,0.00025505,2]
[426820963,1782900635000,-600.19880081,0.00025505,2]
[426820959,1782900635000,-315.72787035,0.00025505,2]
[426820961,1782900635000,-475.69823308,0.00025505,2]
[426820966,1782900635000,-502.25673752,0.00025505,2]
[426820968,1782900635000,-468.95602229,0.00025505,2]
[426820969,1782900635000,-474.4992,0.00025505,2]
[426820971,1782900635000,-279.09768425,0.00025514,2]
[426820977,1782900635000,-162.10458776,0.00025514,2]
[426820967,1782900635000,-655.55486153,0.00025505,2]
[426820962,1782900635000,-539.81988985,0.00025505,2]
[426821000,1782900635000,-151.0,0.00025516,2]
[426821016,1782900635000,-227.14646136,0.0002554,2]
[426821001,1782900635000,-151.0,0.00025516,2]
[426821032,1782900635000,-295.56792002,0.00025563,2]
[426821027,1782900635000,-152.65090083,0.00025563,2]
[426821039,1782900635000,-15113.61180934,0.00025667,2]
[426821033,1782900635000,-7651.06583712,0.00025579,2]
[426821030,1782900635000,-203.64751897,0.00025563,2]
[426821031,1782900635000,-159.77460004,0.00025563,2]
[426821035,1782900635000,-300.0,0.000256,2]
[426821029,1782900635000,-470.69365852,0.00025563,2]
[426821034,1782900635000,-208.41610216,0.00025585,2]
[426821051,1782900635000,-593.0,0.00025781,2]
[426821048,1782900635000,-179.31585618,0.00025767,2]
[426821041,1782900635000,-11109.47065424,0.000257,2]
[426821042,1782900635000,-998.84679543,0.000257,2]
[426821047,1782900635000,-150.0,0.0002573,2]
[426821049,1782900635000,-1670.43140819,0.00025769,2]
[426821043,1782900635000,-434.22597177,0.00025702,2]
[426821040,1782900635000,-800.0,0.000257,9]
[426821044,1782900635000,-155.04098883,0.00025713,2]
[426821045,1782900635000,-247.02803769,0.00025724,2]
[426821050,1782900635000,-5377.0,0.00025781,2]
[426821046,1782900635000,-409.43846498,0.00025724,2]
[426821052,1782900635000,-909734.09301694,0.000258,2]
[426820999,1782900635000,-185.33,0.00025516,2]
[426821028,1782900635000,-257.07052831,0.00025563,2]
[426821037,1782900635000,-696.35013464,0.0002566,2]
[426821038,1782900635000,-24977.71617217,0.00025663,2]
[426821017,1782900635000,-156.81738704,0.0002554,2]
[426821002,1782900635000,-151.0,0.00025516,2]
[426821003,1782900635000,-151.0,0.00025516,2]
[426821004,1782900635000,-151.0,0.00025516,2]
[426821005,1782900635000,-185.33,0.00025516,2]
[426821006,1782900635000,-151.0,0.00025516,2]
[426821014,1782900635000,-479.11874936,0.00025537,2]
[426821015,1782900635000,-263.01707247,0.00025538,2]
[426821007,1782900635000,-151.0,0.00025516,2]
[426821011,1782900635000,-151.0,0.00025516,2]
[426821036,1782900635000,-697.08670785,0.00025607,2]
[426821009,1782900635000,-185.33,0.00025516,2]
[426821013,1782900635000,-436.72870103,0.00025537,2]
[426821008,1782900635000,-151.17,0.00025516,2]
[426821012,1782900635000,-151.0,0.00025516,2]
[426821023,1782900635000,-385.93729513,0.00025563,2]
[426821010,1782900635000,-151.0,0.00025516,2]
[426821026,1782900635000,-190.88288657,0.00025563,2]
[426821024,1782900635000,-299.59514079,0.00025563,2]
[426821020,1782900635000,-415.32295982,0.00025563,2]
[426821022,1782900635000,-399.38925175,0.00025563,2]
[426821019,1782900635000,-244.86408903,0.00025563,2]
[426821018,1782900635000,-396.49945294,0.0002554,2]
[426821021,1782900635000,-483.33028369,0.00025563,2]
[426821025,1782900635000,-363.84878676,0.00025563,2]
[426821069,1782900637000,-2886.98715085,0.000258,2]
[426821059,1782900637000,-3651.0,0.0001973,2]
[426821062,1782900637000,-500.0,0.00023422,2]
[426821060,1782900637000,-3651.0,0.0002273,2]
[426821064,1782900637000,-1000.0,0.00024658,2]
[426821066,1782900637000,-177.66,0.00024658,2]
[426821071,1782900637000,-562.35893659,0.000258,2]
[426821068,1782900637000,-3475.22475052,0.0002573,2]
[426821074,1782900637000,-1006.02544951,0.000258,2]
[426821073,1782900637000,-3114.62395894,0.000258,2]
[426821067,1782900637000,-175.77524948,0.0002573,2]
[426821075,1782900637000,-10640.50911734,0.000258,2]
[426821070,1782900637000,-3807.63784127,0.000258,2]
[426821072,1782900637000,-1087.64002079,0.000258,2]
[426821076,1782900638000,-10181.29755017,0.000258,2]
[426821116,1782900639000,-2211.23487024,0.000258,2]
[426821129,1782900642000,-1405.14145537,0.000249,2]
[426821130,1782900643000,-117.8145403,0.000249,2]
[426821131,1782900643000,-67262.12995618,0.000258,2]
[426821133,1782900645000,-300.0,0.000258,2]
[426821134,1782900645000,-8236.90382334,0.000258,2]
[426821135,1782900645000,-1605.55060109,0.000258,2]
[426821160,1782900688000,168.67358874,0.00029516,30]
[426821161,1782900776000,56281.3277,0.0002279,120]
[426821162,1782901001000,177.84,0.00030136,30]
[426821163,1782901014000,292.31937638,0.00030135,30]
[426821164,1782901045000,177.84,0.00030136,30]
[426821166,1782901107000,260.664866,0.00025872,120]
[426821169,1782901227000,214.55921685,0.00030137,120]
[426821170,1782901274000,193.87,0.00029669,30]
[426821172,1782901740000,2000.0,0.00030135,30]
[426821171,1782901740000,2000.0,0.00030136,120]
[426821174,1782901741000,2000.0,0.00030134,36]
[426821173,1782901741000,2000.0,0.00030134,35]
[426821175,1782901741000,2000.0,0.00030134,37]
[426821177,1782901741000,2000.0,0.00030134,39]
[426821176,1782901741000,2000.0,0.00030134,38]
[426821178,1782901742000,2000.0,0.00030134,40]
[426821179,1782901759000,237.90546302,0.00030135,30]
[426821180,1782901802000,150.0,0.00018999,30]
[426821200,1782901831000,-151.0,0.000169,2]
[426821201,1782901831000,-150.0,0.000169,2]
[426821202,1782901831000,-153.0,0.000169,2]
[426821198,1782901831000,-151.0,0.000169,2]
[426821199,1782901831000,-151.0,0.000169,2]
[426821197,1782901831000,-151.0,0.000169,2]
[426821196,1782901831000,-152.0,0.000169,2]
[426821194,1782901831000,-151.0,0.000168,2]
[426821195,1782901831000,-152.0,0.000169,2]
[426821191,1782901831000,-151.0,0.000168,2]
[426821192,1782901831000,-150.0,0.000168,2]
[426821189,1782901831000,-38.75107242,0.00016472,2]
[426821190,1782901831000,-150.0,0.00016586,2]
[426821187,1782901831000,-174.8,0.00016438,2]
[426821188,1782901831000,-112.24892758,0.00016472,2]
[426821203,1782901831000,-152.0,0.000169,2]
[426821185,1782901831000,-533.4,0.00014999,2]
[426821186,1782901831000,-150.0,0.00015643,2]
[426821193,1782901831000,-151.0,0.000168,2]
[426821204,1782901831000,-151.0,0.000169,2]
[426821225,1782901831000,-150.0,0.000171,2]
[426821206,1782901831000,-150.0,0.00017,2]
[426821205,1782901831000,-151.0,0.000169,2]
[426821226,1782901831000,-152.0,0.000171,2]
[426821224,1782901831000,-151.0,0.000171,2]
[426821222,1782901831000,-150.0,0.000171,2]
[426821223,1782901831000,-151.0,0.000171,2]
[426821221,1782901831000,-152.0,0.000171,2]
[426821219,1782901831000,-152.0,0.000171,2]